bitfinex/quotes_SOLUSD_20250112
["timestamp","ask_amount","ask_price","bid_price","bid_amount"]
[1736696492111,8.630269,190.23,190.17,8.630269]
[1736696492322,8.630269,190.22,190.16,8.630269]
[1736696494130,8.630269,190.23,190.17,8.630269]
[1736696494532,8.630269,190.24,190.18,8.630269]
[1736696494828,30.634169,190.25,190.19,8.630269]
[1736696495219,30.134169,190.25,190.19,8.630269]
[1736696495730,8.630269,190.24,190.18,145.730269]
[1736696496030,8.630269,190.23,190.18,145.730269]
[1736696496218,8.630269,190.23,190.18,137.1]
[1736696497036,8.630269,190.23,190.18,145.730269]
[1736696499236,8.130269,190.23,190.18,145.730269]
[1736696501512,8.630269,190.24,190.18,145.730269]
[1736696504742,30.134169,190.25,190.19,8.630269]
[1736696505622,28.630269,190.25,190.19,8.630269]
[1736696508949,2.0269,190.29,190.18,145.730269]
[1736696508950,8.630269,190.23,190.18,145.730269]
[1736696510241,8.630269,190.22,190.18,137.1]
[1736696510429,8.630269,190.21,190.16,145.730269]
[1736696510634,8.630269,190.22,190.16,145.730269]
[1736696510934,8.630269,190.21,190.16,137.1]
[1736696511141,8.630269,190.2,190.14,8.630269]
[1736696513743,8.630269,190.2,190.15,8.630269]
[1736696514936,8.630269,190.2,190.15,145.730269]
[1736696515453,8.630269,190.21,190.15,145.730269]
[1736696518052,8.630269,190.18,190.1,137.1]
[1736696518232,8.630269,190.19,190.13,8.630269]
[1736696518852,8.630269,190.18,190.13,137.1]
[1736696519638,8.630269,190.17,190.13,137.1]
[1736696519828,8.630269,190.17,190.12,8.630269]
[1736696520445,8.630269,190.18,190.12,145.730269]
[1736696521561,8.630269,190.2,190.14,8.630269]
[1736696521857,0.5,190.25,190.16,145.730269]
[1736696522039,8.630269,190.22,190.16,145.730269]
[1736696522632,8.630269,190.24,190.18,8.630269]
[1736696522853,8.630269,190.25,190.19,8.630269]
[1736696523071,1.6536,190.26,190.16,137.1]
[1736696523072,8.630269,190.24,190.18,8.630269]
[1736696523651,8.630269,190.23,190.17,8.630269]
[1736696524530,8.630269,190.24,190.18,8.630269]
[1736696526362,8.630269,190.24,190.19,8.630269]
[1736696527661,8.630269,190.25,190.19,8.630269]
[1736696527959,1.5784,190.3,190.22,8.630269]
[1736696528132,8.630269,190.29,190.23,8.630269]
[1736696528333,1.5784,190.3,190.25,8.630269]
[1736696528753,10.208669,190.3,190.24,8.630269]
[1736696528953,0.5,190.33,190.24,8.630269]
[1736696529146,8.630269,190.29,190.23,8.630269]
[1736696529535,8.630269,190.28,190.22,8.630269]
[1736696529872,1.5784,190.35,190.27,8.630269]
[1736696530039,8.630269,190.37,190.32,8.630269]
[1736696530361,20.0,190.34,190.32,8.630269]
[1736696530950,1.5784,190.39,190.33,8.630269]
[1736696531165,0.5,190.42,190.34,8.630269]
[1736696531338,0.5,190.43,190.36,8.630269]
[1736696531547,8.630269,190.42,190.36,8.630269]
[1736696531745,8.630269,190.41,190.36,8.630269]
[1736696532266,8.630269,190.42,190.36,8.630269]
[1736696532438,28.630269,190.41,190.35,8.630269]
[1736696532639,8.630269,190.4,190.35,8.630269]
[1736696533264,8.630269,190.39,190.34,8.630269]
[1736696533481,8.630269,190.39,190.33,8.630269]
[1736696533783,28.630269,190.41,190.35,8.630269]
[1736696533985,28.630269,190.41,190.36,8.630269]
[1736696534634,20.0,190.41,190.36,8.630269]
[1736696534838,20.0,190.39,190.36,8.630269]
[1736696535276,20.0,190.39,190.37,8.630269]
[1736696535465,1.5784,190.44,190.32,0.78778339]
[1736696535466,8.630269,190.44,190.38,8.630269]
[1736696535642,8.630269,190.44,190.39,8.630269]
[1736696536168,8.630269,190.45,190.4,8.630269]
[1736696536457,8.630269,190.46,190.4,8.630269]
[1736696536666,20.0,190.43,190.4,8.630269]
[1736696537263,8.630269,190.45,190.4,8.630269]
[1736696537459,9.130269,190.45,190.4,8.630269]
[1736696537684,8.630269,190.44,190.39,8.630269]
[1736696542195,8.630269,190.42,190.36,137.1]
[1736696542474,8.630269,190.41,190.36,8.630269]
[1736696542676,8.630269,190.42,190.36,8.630269]
[1736696542874,8.630269,190.42,190.37,8.630269]
[1736696543688,20.0,190.41,190.4,8.630269]
[1736696543894,20.0,190.42,190.4,8.630269]
[1736696544591,28.630269,190.46,190.41,8.630269]
[1736696544761,28.630269,190.46,190.4,8.630269]
[1736696545276,8.630269,190.45,190.4,8.630269]
[1736696548189,8.630269,190.45,190.39,8.630269]
[1736696548490,8.630269,190.44,190.38,8.630269]
[1736696548674,8.630269,190.43,190.38,8.630269]
[1736696549890,8.630269,190.44,190.38,8.630269]
[1736696551179,8.630269,190.41,190.31,137.1]
[1736696551354,8.630269,190.4,190.34,8.630269]
[1736696551682,54.521076,190.44,190.38,8.630269]
[1736696551683,28.630269,190.44,190.38,8.630269]
[1736696551859,28.630269,190.44,190.39,8.630269]
[1736696553177,20.87647,190.48,190.39,8.630269]
[1736696553388,8.630269,190.44,190.39,8.630269]
[1736696555061,8.630269,190.44,190.38,8.630269]
[1736696555657,8.630269,190.4,190.34,137.1]
[1736696555863,8.630269,190.38,190.33,8.630269]
[1736696556081,8.630269,190.38,190.32,8.630269]
[1736696556796,8.630269,190.37,190.32,8.630269]
[1736696559397,8.630269,190.39,190.33,8.630269]
[1736696559761,8.630269,190.4,190.34,8.630269]
[1736696560682,8.630269,190.4,190.35,8.630269]
[1736696561263,8.630269,190.4,190.31,23.776884]
[1736696561470,8.630269,190.39,190.33,8.630269]
[1736696564599,2.1487,190.42,190.33,8.630269]
[1736696564600,8.630269,190.38,190.33,8.630269]
[1736696565394,8.630269,190.38,190.32,8.630269]
[1736696565612,8.630269,190.36,190.3,7.9116]
[1736696565771,8.630269,190.35,190.3,15.005969]
[1736696566382,8.630269,190.34,190.28,8.630269]
[1736696566573,0.5,190.38,190.28,8.630269]
[1736696566780,8.630269,190.36,190.31,8.630269]
[1736696567899,8.630269,190.35,190.3,8.630269]
[1736696568472,0.5,190.39,190.29,8.630269]
[1736696568473,8.630269,190.34,190.29,8.630269]
[1736696568896,8.630269,190.34,190.28,8.630269]
[1736696569296,8.630269,190.34,190.26,6.1472]
[1736696569297,8.630269,190.33,190.26,1.5472]
[1736696569599,8.630269,190.33,190.28,8.630269]
[1736696572073,8.630269,190.32,190.27,8.630269]
[1736696572273,8.630269,190.33,190.28,8.630269]
[1736696572498,20.0,190.32,190.3,8.630269]
[1736696575198,8.630269,190.35,190.3,8.630269]
[1736696575383,20.0,190.34,190.31,8.630269]
[1736696576185,20.0,190.34,190.32,8.630269]
[1736696577089,20.0,190.34,190.31,8.630269]
[1736696578601,8.630269,190.34,190.27,160.876884]
[1736696578900,8.630269,190.36,190.31,8.630269]
[1736696579080,20.0,190.34,190.31,8.630269]
[1736696579281,20.0,190.34,190.32,8.630269]
[1736696579489,8.630269,190.38,190.33,8.630269]
[1736696579689,8.630269,190.4,190.34,8.630269]
[1736696579884,8.630269,190.4,190.35,8.630269]
[1736696580905,8.630269,190.4,190.34,8.630269]
[1736696581501,8.630269,190.38,190.33,8.630269]
[1736696584490,8.630269,190.39,190.33,8.630269]
[1736696584696,20.5,190.41,190.33,8.630269]
[1736696584896,8.630269,190.39,190.34,8.630269]
[1736696585533,8.630269,190.41,190.36,8.630269]
[1736696585820,28.630269,190.42,190.37,8.630269]
[1736696585988,8.630269,190.43,190.37,8.630269]
[1736696586386,8.630269,190.43,190.38,8.630269]
[1736696586617,8.630269,190.44,190.39,8.630269]
[1736696587497,8.630269,190.43,190.38,8.630269]
[1736696588303,22.0399,190.47,190.39,8.630269]
[1736696588511,20.0,190.42,190.39,8.630269]
[1736696588935,0.37647,190.51,190.39,8.630269]
[1736696589216,8.630269,190.43,190.38,15.172369]
[1736696592895,8.630269,190.42,190.35,160.876884]
[1736696593229,8.630269,190.42,190.36,8.630269]
[1736696593604,8.630269,190.41,190.36,8.630269]
[1736696594125,8.630269,190.42,190.37,8.630269]
[1736696595203,8.630269,190.43,190.37,8.630269]
[1736696595520,8.630269,190.43,190.38,8.630269]
[1736696596029,8.630269,190.42,190.37,8.630269]
[1736696596816,8.630269,190.41,190.33,179.7757]
[1736696597020,8.630269,190.41,190.36,8.630269]
[1736696599211,8.630269,190.42,190.36,8.630269]
[1736696600416,8.630269,190.42,190.37,8.630269]
[1736696601209,8.630269,190.42,190.36,8.630269]
[1736696601521,0.87647,190.47,190.37,8.630269]
[1736696601723,8.630269,190.42,190.37,8.630269]
[1736696602497,8.630269,190.42,190.34,160.876884]
[1736696602697,8.630269,190.42,190.37,8.630269]
[1736696602898,0.87647,190.47,190.34,160.876884]
[1736696602899,8.630269,190.41,190.34,160.876884]
[1736696603101,20.62549,190.47,190.33,8.0757]
[1736696603102,8.630269,190.37,190.33,8.0757]
[1736696603423,8.630269,190.39,190.33,16.705969]
[1736696603801,8.630269,190.39,190.34,8.630269]
[1736696603997,8.630269,190.39,190.33,8.0757]
[1736696604197,8.630269,190.39,190.34,8.630269]
[1736696605023,8.630269,190.39,190.33,15.096969]
[1736696605323,8.630269,190.39,190.29,76.39059]
[1736696605324,8.630269,190.37,190.29,170.2276]
[1736696605502,8.630269,190.37,190.31,8.630269]
[1736696605704,8.630269,190.36,190.31,8.630269]
[1736696606043,8.630269,190.34,190.29,145.730269]
[1736696606212,8.630269,190.36,190.3,8.630269]
[1736696606394,8.630269,190.36,190.31,8.630269]
[1736696607013,8.630269,190.37,190.31,8.630269]
[1736696607514,8.630269,190.36,190.31,8.630269]
[1736696607708,8.630269,190.36,190.3,8.630269]
[1736696608110,8.630269,190.36,190.31,8.630269]
[1736696611540,8.630269,190.35,190.3,145.730269]
[1736696611744,8.630269,190.36,190.31,145.730269]
[1736696612110,8.630269,190.37,190.32,8.630269]
[1736696613130,8.630269,190.36,190.31,8.630269]
[1736696613501,8.630269,190.36,190.3,8.630269]
[1736696613707,8.630269,190.36,190.31,8.630269]
[1736696614637,8.630269,190.37,190.32,8.630269]
[1736696614924,0.5,190.42,190.36,8.630269]
[1736696615134,8.630269,190.42,190.37,8.630269]
[1736696616333,8.630269,190.43,190.38,8.630269]
[1736696617022,20.0,190.4,190.37,8.630269]
[1736696617719,20.0,190.4,190.38,8.630269]
[1736696618245,20.0,190.44,190.39,8.630269]
[1736696618542,20.0,190.42,190.39,8.630269]
[1736696619049,10.236569,190.45,190.4,8.630269]
[1736696619411,20.0,190.42,190.39,8.630269]
[1736696620138,28.630269,190.44,190.39,8.630269]
[1736696620362,20.0,190.44,190.4,8.630269]
[1736696620514,8.630269,190.46,190.41,8.630269]
[1736696620810,20.0,190.43,190.41,8.630269]
[1736696621429,20.0,190.43,190.36,166.882484]
[1736696621430,2.0932,190.5,190.42,8.630269]
[1736696621636,8.630269,190.48,190.43,8.630269]
[1736696623525,8.630269,190.49,190.44,8.630269]
[1736696624434,21.5932,190.5,190.44,8.630269]
[1736696624738,8.630269,190.49,190.44,8.630269]
[1736696625124,28.630269,190.5,190.45,8.630269]
[1736696625520,28.630269,190.5,190.44,8.630269]
[1736696626955,8.630269,190.47,190.42,8.630269]
[1736696627434,8.630269,190.46,190.39,1.5305]
[1736696627641,8.630269,190.45,190.4,8.630269]
[1736696627935,8.630269,190.46,190.41,8.630269]
[1736696628125,8.630269,190.47,190.42,8.630269]
[1736696628316,0.25098,190.52,190.41,8.630269]
[1736696628317,8.630269,190.46,190.41,8.630269]
[1736696628526,8.630269,190.43,190.38,8.630269]
[1736696628843,8.630269,190.44,190.38,8.630269]
[1736696629135,8.630269,190.44,190.39,8.630269]
[1736696629537,8.630269,190.45,190.4,8.630269]
[1736696631044,8.630269,190.44,190.39,8.630269]
[1736696631636,8.630269,190.42,190.37,8.630269]
[1736696631841,8.630269,190.45,190.4,8.630269]
[1736696632135,8.630269,190.44,190.39,8.630269]
[1736696632638,8.630269,190.45,190.4,8.630269]
[1736696632939,8.630269,190.46,190.4,8.630269]
[1736696633140,28.630269,190.47,190.42,8.630269]
[1736696634040,8.630269,190.48,190.43,8.630269]
[1736696635626,2.0277,190.52,190.43,8.630269]
[1736696635833,8.630269,190.48,190.43,8.630269]
[1736696637640,8.630269,190.47,190.42,8.630269]
[1736696637850,8.630269,190.45,190.4,8.630269]
[1736696639232,8.630269,190.46,190.4,8.630269]
[1736696640050,8.630269,190.44,190.38,23.776884]
[1736696640241,8.630269,190.43,190.37,8.630269]
[1736696640447,8.630269,190.43,190.37,32.407153]
[1736696640751,8.630269,190.43,190.37,8.630269]
[1736696641157,0.37647,190.49,190.36,6.0056]
[1736696641158,8.630269,190.41,190.36,6.0056]
[1736696641340,8.630269,190.41,190.36,14.635869]
[1736696641953,8.630269,190.41,190.36,8.630269]
[1736696643535,8.630269,190.4,190.34,1.5516]
[1736696643742,8.630269,190.39,190.34,1.5516]
[1736696643928,8.630269,190.39,190.33,8.630269]
[1736696644134,8.630269,190.39,190.34,8.630269]
[1736696644930,8.630269,190.4,190.34,8.630269]
[1736696645148,8.630269,190.39,190.33,32.407153]
[1736696645375,8.630269,190.4,190.35,8.630269]
[1736696645850,8.630269,190.4,190.34,8.630269]
[1736696646171,8.630269,190.39,190.34,8.630269]
[1736696647054,8.630269,190.41,190.36,8.630269]
[1736696647551,8.630269,190.4,190.35,8.630269]
[1736696647742,8.630269,190.4,190.34,8.630269]
[1736696649135,8.630269,190.39,190.34,8.630269]
[1736696649341,8.630269,190.37,190.29,6.1048]
[1736696649540,8.630269,190.37,190.31,8.630269]
[1736696650043,8.630269,190.36,190.31,8.630269]
[1736696651254,8.630269,190.37,190.31,8.630269]
[1736696651862,8.630269,190.37,190.32,8.630269]
[1736696652053,8.630269,190.38,190.33,8.630269]
[1736696652882,8.630269,190.37,190.32,8.630269]
[1736696653851,8.630269,190.36,190.31,8.630269]
[1736696654573,8.630269,190.36,190.3,8.630269]
[1736696656876,8.630269,190.33,190.28,8.630269]
[1736696658045,8.630269,190.33,190.26,23.776884]
[1736696658250,8.630269,190.31,190.25,145.730269]
[1736696659583,8.630269,190.29,190.25,137.1]
[1736696661777,8.630269,190.29,190.23,8.630269]
[1736696661778,28.630269,190.32,190.26,8.630269]
[1736696662169,8.630269,190.31,190.26,8.630269]
[1736696663550,8.130269,190.31,190.26,8.630269]
[1736696665284,8.630269,190.32,190.26,8.630269]
[1736696665478,8.630269,190.34,190.29,8.630269]
[1736696665984,8.630269,190.35,190.29,8.630269]
[1736696666289,8.630269,190.35,190.3,8.630269]
[1736696667602,8.630269,190.36,190.31,8.630269]
[1736696667899,8.630269,190.4,190.35,8.630269]
[1736696668696,10.237769,190.42,190.36,8.630269]
[1736696668992,1.6075,190.42,190.37,8.630269]
[1736696669196,20.0,190.4,190.37,8.630269]
[1736696669789,30.237769,190.42,190.37,8.630269]
[1736696669995,20.0,190.42,190.37,8.630269]
[1736696670299,20.0,190.4,190.37,8.630269]
[1736696671491,8.630269,190.45,190.39,8.630269]
[1736696674184,0.25098,190.48,190.4,8.630269]
[1736696674390,8.630269,190.45,190.39,8.630269]
[1736696674591,8.630269,190.44,190.38,8.630269]
[1736696675469,8.630269,190.45,190.39,8.630269]
[1736696676080,8.630269,190.44,190.38,8.630269]
[1736696676584,8.630269,190.45,190.39,8.630269]
[1736696676777,8.630269,190.46,190.4,8.630269]
[1736696678089,8.630269,190.45,190.39,8.630269]
[1736696680273,8.630269,190.43,190.38,137.1]
[1736696680473,8.630269,190.42,190.36,169.507153]
[1736696682290,0.5,190.52,190.41,8.630269]
[1736696682493,10.0,190.57,190.44,8.630269]
[1736696682494,20.0,190.47,190.44,8.630269]
[1736696682915,20.0,190.47,190.43,8.630269]
[1736696683587,8.630269,190.47,190.42,8.630269]
[1736696683897,8.630269,190.46,190.41,8.630269]
[1736696684103,8.630269,190.46,190.4,8.630269]
[1736696684273,8.630269,190.46,190.41,8.630269]
[1736696684478,8.630269,190.47,190.41,8.630269]
[1736696685069,8.630269,190.46,190.4,8.630269]
[1736696685274,20.0,190.49,190.39,8.630269]
[1736696685275,8.630269,190.45,190.39,8.630269]
[1736696685484,8.630269,190.44,190.39,8.630269]
[1736696686169,8.630269,190.45,190.39,8.630269]
[1736696687973,8.630269,190.44,190.39,8.630269]
[1736696688411,8.630269,190.43,190.35,1.6252]
[1736696688621,8.630269,190.41,190.36,8.630269]
[1736696691988,8.630269,190.42,190.37,8.630269]
[1736696701322,8.630269,190.41,190.36,8.630269]
[1736696702419,8.630269,190.42,190.37,8.630269]
[1736696703215,8.630269,190.43,190.37,8.630269]
[1736696704120,8.630269,190.42,190.37,8.630269]
[1736696704321,8.630269,190.42,190.34,6.0366]
[1736696704616,8.630269,190.42,190.37,8.630269]
[1736696705796,8.630269,190.43,190.38,8.630269]
[1736696706122,20.25098,190.48,190.42,8.630269]
[1736696706123,8.630269,190.48,190.42,8.630269]
[1736696706343,8.630269,190.48,190.43,8.630269]
[1736696706543,8.630269,190.48,190.42,8.630269]
[1736696706716,8.630269,190.47,190.41,8.630269]
[1736696706897,0.5,190.48,190.42,8.630269]
[1736696707222,8.630269,190.47,190.42,8.630269]
[1736696707401,8.630269,190.47,190.41,8.630269]
[1736696708511,8.630269,190.46,190.41,8.630269]
[1736696709201,8.630269,190.47,190.42,8.630269]
[1736696711206,21.663,190.49,190.45,8.630269]
[1736696711405,8.630269,190.51,190.46,8.630269]
[1736696711622,20.0,190.48,190.46,8.630269]
[1736696713131,20.0,190.48,190.45,8.630269]
[1736696714928,28.630269,190.49,190.44,8.630269]
[1736696715106,20.0,190.49,190.45,8.630269]
[1736696719911,28.630269,190.49,190.44,8.630269]
[1736696720134,20.0,190.49,190.45,8.630269]
[1736696723429,1.6232,190.54,190.46,8.630269]
[1736696723636,1.6232,190.54,190.51,8.630269]
[1736696723925,15.145569,190.57,190.51,8.630269]
[1736696724817,8.630269,190.56,190.51,8.630269]
[1736696725204,20.0,190.54,190.51,8.630269]
[1736696726025,8.630269,190.56,190.51,8.630269]
[1736696726826,8.630269,190.56,190.5,8.630269]
[1736696729834,8.630269,190.56,190.51,8.630269]
[1736696732912,8.630269,190.57,190.52,8.630269]
[1736696733109,0.5,190.61,190.55,8.630269]
[1736696733317,8.630269,190.61,190.56,8.630269]
[1736696733531,20.0,190.58,190.56,8.630269]
[1736696733735,20.0,190.58,190.5,1.5704]
[1736696734060,8.630269,190.54,190.49,8.630269]
[1736696734235,0.5,190.58,190.43,6.2407]
[1736696734236,8.630269,190.5,190.43,6.2407]
[1736696734433,8.630269,190.48,190.43,14.870969]
[1736696734638,20.0,190.53,190.43,6.2407]
[1736696734955,0.5,190.52,190.43,6.2407]
[1736696735262,8.630269,190.48,190.43,14.870969]
[1736696736347,8.630269,190.49,190.44,8.630269]
[1736696736529,8.630269,190.5,190.45,8.630269]
[1736696736723,0.5,190.52,190.45,8.630269]
[1736696736951,1.593,190.57,190.48,8.630269]
[1736696737126,8.630269,190.55,190.5,8.630269]
[1736696737515,8.630269,190.54,190.49,8.630269]
[1736696739330,8.630269,190.53,190.43,36.2407]
[1736696739530,8.630269,190.52,190.46,8.630269]
[1736696740820,8.630269,190.52,190.43,36.2407]
[1736696741147,8.630269,190.5,190.45,8.630269]
[1736696741460,8.630269,190.48,190.41,6.1504]
[1736696741743,8.130269,190.48,190.43,8.630269]
[1736696741946,8.630269,190.5,190.45,8.630269]
[1736696742127,8.630269,190.51,190.46,8.630269]
[1736696742449,8.630269,190.5,190.45,8.630269]
[1736696746163,8.630269,190.49,190.41,6.1504]
[1736696746458,8.630269,190.49,190.44,8.630269]
[1736696747754,8.630269,190.49,190.41,6.1504]
[1736696747928,8.630269,190.49,190.44,8.630269]
[1736696748361,8.630269,190.48,190.43,8.630269]
[1736696749636,8.630269,190.49,190.44,8.630269]
[1736696751964,8.630269,190.5,190.45,8.630269]
[1736696752149,8.630269,190.46,190.36,30.0]
[1736696752459,8.630269,190.45,190.39,8.630269]
[1736696752976,8.630269,190.45,190.4,8.630269]
[1736696753345,8.630269,190.43,190.38,8.630269]
[1736696753546,8.630269,190.43,190.36,61.6]
[1736696753857,8.630269,190.43,190.36,34.58]
[1736696754028,8.630269,190.42,190.34,6.2797]
[1736696754343,8.630269,190.41,190.36,8.630269]
[1736696755151,8.630269,190.41,190.34,6.2797]
[1736696755340,8.630269,190.41,190.36,8.630269]
[1736696755759,8.630269,190.41,190.34,6.2797]
[1736696755760,20.5,190.49,190.37,8.630269]
[1736696755938,8.630269,190.43,190.38,8.630269]
[1736696756149,8.630269,190.43,190.37,8.630269]
[1736696757561,8.630269,190.43,190.38,8.630269]
[1736696758541,8.630269,190.44,190.39,8.630269]
[1736696758743,8.630269,190.44,190.35,30.0]
[1736696758744,8.630269,190.45,190.4,8.630269]
[1736696758949,8.630269,190.47,190.41,8.630269]
[1736696760561,2.16889,190.5,190.43,8.630269]
[1736696760562,8.630269,190.48,190.43,8.630269]
[1736696760768,10.173669,190.5,190.45,8.630269]
[1736696760967,8.630269,190.53,190.47,8.630269]
[1736696761168,20.0,190.5,190.47,8.630269]
[1736696761352,8.630269,190.53,190.47,8.630269]
[1736696761765,20.0,190.5,190.47,8.630269]
[1736696762181,1.5434,190.55,190.49,8.630269]
[1736696762360,8.630269,190.58,190.52,8.630269]
[1736696762689,8.630269,190.57,190.51,8.630269]
[1736696762851,8.630269,190.56,190.5,8.630269]
[1736696763270,8.630269,190.57,190.51,8.630269]
[1736696763872,8.630269,190.56,190.5,8.630269]
[1736696764599,8.630269,190.52,190.45,1.5728]
[1736696764774,8.630269,190.51,190.45,8.630269]
[1736696767082,8.630269,190.48,190.41,7.8525]
[1736696767295,8.630269,190.47,190.41,13.210269]
[1736696767492,14.91467813,190.45,190.4,14.91467813]
[1736696767874,14.91467813,190.46,190.4,14.91467813]
[1736696768273,14.91467813,190.45,190.4,14.91467813]
[1736696769687,14.91467813,190.46,190.41,14.91467813]
[1736696770910,0.62549,190.51,190.41,14.91467813]
[1736696770911,14.91467813,190.47,190.41,14.91467813]
[1736696771984,14.91467813,190.46,190.41,14.91467813]
[1736696772184,14.91467813,190.45,190.4,14.91467813]
[1736696773694,14.91467813,190.44,190.38,14.91467813]
[1736696774118,14.91467813,190.44,190.39,14.91467813]
[1736696774495,15.54016813,190.5,190.4,14.91467813]
[1736696774496,14.91467813,190.46,190.4,14.91467813]
[1736696775015,14.91467813,190.47,190.41,14.91467813]
[1736696775310,0.62549,190.5,190.43,14.91467813]
[1736696775311,14.91467813,190.49,190.43,14.91467813]
[1736696775538,14.91467813,190.51,190.45,14.91467813]
[1736696775730,14.91467813,190.5,190.44,14.91467813]
[1736696776808,14.91467813,190.5,190.45,14.91467813]
[1736696777619,16.54497813,190.52,190.46,14.91467813]
[1736696778108,14.91467813,190.54,190.48,14.91467813]
[1736696778298,0.5,190.58,190.51,14.91467813]
[1736696778299,16.46937813,190.57,190.51,14.91467813]
[1736696778498,1.5547,190.57,190.51,14.91467813]
[1736696778693,16.46937813,190.57,190.51,14.91467813]
[1736696779419,1.5547,190.57,190.51,14.91467813]
[1736696782207,1.5547,190.57,190.52,14.91467813]
[1736696782402,14.91467813,190.59,190.53,14.91467813]
[1736696782719,34.91467813,190.6,190.54,14.91467813]
[1736696782935,34.91467813,190.6,190.49,0.12549]
[1736696782936,0.5,190.62,190.57,14.91467813]
[1736696783096,1.6563,190.66,190.61,14.91467813]
[1736696783423,1.6563,190.66,190.64,14.91467813]
[1736696783606,1.6563,190.66,190.63,14.91467813]
[1736696783921,20.0,190.66,190.63,14.91467813]
[1736696784215,14.56629774,190.69,190.64,14.91467813]
[1736696784414,1.6563,190.7,190.66,14.91467813]
[1736696784631,20.0,190.69,190.66,14.91467813]
[1736696785120,14.91467813,190.68,190.62,14.91467813]
[1736696785319,14.91467813,190.66,190.6,14.91467813]
[1736696785526,14.91467813,190.63,190.57,19.49467813]
[1736696785720,14.91467813,190.62,190.57,19.49467813]
[1736696786795,14.91467813,190.62,190.57,4.58]
[1736696787203,14.91467813,190.61,190.57,4.58]
[1736696787895,14.91467813,190.6,190.57,4.58]
[1736696789425,14.91467813,190.59,190.57,4.58]
[1736696789722,14.91467813,190.59,190.53,14.91467813]
[1736696789929,14.91467813,190.57,190.51,14.91467813]
[1736696790221,14.91467813,190.56,190.51,14.91467813]
[1736696790412,14.91467813,190.57,190.52,14.91467813]
[1736696791300,14.91467813,190.58,190.53,14.91467813]
[1736696791508,14.91467813,190.59,190.54,14.91467813]
[1736696794019,36.93087813,190.61,190.55,14.91467813]
[1736696794202,20.0,190.61,190.56,14.91467813]
[1736696794402,20.0,190.61,190.57,14.91467813]
[1736696796528,34.91467813,190.61,190.55,14.91467813]
[1736696796828,34.91467813,190.61,190.5,20.28172165]
[1736696796829,14.91467813,190.59,190.54,14.91467813]
[1736696798335,14.91467813,190.6,190.54,14.91467813]
[1736696799133,14.91467813,190.59,190.53,14.91467813]
[1736696799736,14.91467813,190.59,190.54,14.91467813]
[1736696801438,14.91467813,190.59,190.53,14.91467813]
[1736696801607,14.91467813,190.6,190.55,14.91467813]
[1736696801814,34.91467813,190.61,190.55,14.91467813]
[1736696802745,20.0,190.61,190.57,14.91467813]
[1736696803141,6.4265,190.64,190.59,14.91467813]
[1736696803142,14.91467813,190.64,190.59,14.91467813]
[1736696803329,20.0,190.62,190.59,14.91467813]
[1736696804017,20.0,190.62,190.6,14.91467813]
[1736696804838,14.91467813,190.67,190.61,14.91467813]
[1736696805012,2.0162,190.69,190.63,14.91467813]
[1736696805013,16.93087813,190.69,190.63,14.91467813]
[1736696805221,2.0162,190.69,190.64,14.91467813]
[1736696805420,20.0,190.67,190.64,14.91467813]
[1736696806245,20.0,190.67,190.63,14.91467813]
[1736696806432,16.93087813,190.69,190.63,14.91467813]
[1736696806633,14.91467813,190.65,190.6,14.91467813]
[1736696806938,15.41467813,190.64,190.58,14.91467813]
[1736696807341,14.91467813,190.64,190.59,14.91467813]
[1736696807947,14.91467813,190.64,190.58,14.91467813]
[1736696808757,14.91467813,190.63,190.58,14.91467813]
[1736696809239,14.91467813,190.59,190.54,14.91467813]